bitfinex-derivatives/quotes_SOLF0:USTF0_20250113
["timestamp","ask_amount","ask_price","bid_price","bid_amount"]
[1736763596696,2.7847,179.69,179.63,2.7855]
[1736763598594,2.7847,179.69,179.64,2.7854]
[1736763600392,92.57317567,179.7,179.66,2.785]
[1736763600592,92.57317567,179.7,179.56,5.0446]
[1736763600792,92.57317567,179.7,179.58,21.44132364]
[1736763600993,2.785,179.67,179.62,2.7856]
[1736763601193,2.785,179.67,179.58,21.44132364]
[1736763601394,92.57317567,179.7,179.6,13.40503433]
[1736763601607,13.40503433,179.68,179.57,13.40503433]
[1736763602094,1.6447,179.69,179.57,13.40503433]
[1736763602300,2.7849,179.68,179.63,2.7855]
[1736763602497,2.7849,179.68,179.6,13.40503433]
[1736763602896,4.4295,179.69,179.6,13.40503433]
[1736763603399,1.6447,179.69,179.6,13.40503433]
[1736763603599,2.7848,179.68,179.6,13.40503433]
[1736763604001,1.6447,179.69,179.6,13.40503433]
[1736763604201,2.7845,179.7,179.6,13.40503433]
[1736763604605,6.22,179.73,179.63,13.40503433]
[1736763604804,9.0041,179.73,179.63,13.40503433]
[1736763605004,6.22,179.73,179.63,13.40503433]
[1736763605302,0.8503018,179.72,179.63,13.40503433]
[1736763605508,13.40503433,179.71,179.6,13.40503433]
[1736763605910,13.40503433,179.68,179.61,2.7858]
[1736763606205,13.40503433,179.68,179.57,13.40503433]
[1736763606403,2.7856,179.64,179.59,2.7862]
[1736763606802,3.2841,179.67,179.59,2.7862]
[1736763607806,3.2841,179.67,179.61,2.7858]
[1736763608103,2.7856,179.64,179.57,13.40503433]
[1736763608405,2.7856,179.64,179.59,2.7861]
[1736763609607,6.24,179.64,179.54,13.40503433]
[1736763609810,2.7856,179.63,179.58,2.7863]
[1736763610305,6.24,179.64,179.59,2.7862]
[1736763610510,6.24,179.64,179.57,13.40503433]
[1736763611708,6.24,179.64,179.59,2.7861]
[1736763611906,6.24,179.64,179.57,13.40503433]
[1736763612907,6.24,179.64,179.51,4.9686]
[1736763613107,13.40503433,179.63,179.51,4.9686]
[1736763613609,2.7861,179.6,179.55,2.7868]
[1736763614002,6.24,179.64,179.53,13.40503433]
[1736763614202,2.7859,179.62,179.57,2.7865]
[1736763614403,6.24,179.64,179.53,13.40503433]
[1736763615007,2.7862,179.6,179.55,2.7867]
[1736763615202,13.40503433,179.63,179.53,13.40503433]
[1736763615406,0.85072674,179.62,179.53,13.40503433]
[1736763615602,13.40503433,179.63,179.53,13.40503433]
[1736763616109,6.24,179.64,179.53,13.40503433]
[1736763616314,0.85069493,179.63,179.53,13.40503433]
[1736763616809,6.24,179.64,179.53,13.40503433]
[1736763617010,0.85069339,179.63,179.53,13.40503433]
[1736763617511,0.85069339,179.63,179.56,2.7865]
[1736763618115,0.85069339,179.63,179.56,7.2365]
[1736763618410,0.85069339,179.63,179.58,2.7864]
[1736763618612,6.24,179.64,179.56,17.85503433]
[1736763618909,2.7856,179.64,179.59,2.7862]
[1736763619111,19.64503433,179.66,179.56,17.85503433]
[1736763619306,2.7855,179.64,179.56,17.85503433]
[1736763619513,2.7855,179.64,179.6,2.786]
[1736763619710,9.5241,179.67,179.59,13.40503433]
[1736763619711,1.7001,179.67,179.59,13.40503433]
[1736763619905,7.93682699,179.68,179.62,13.40503433]
[1736763620210,2.80002699,179.73,179.65,13.40503433]
[1736763620410,2.80002699,179.73,179.68,13.40503433]
[1736763620612,92.25436178,179.75,179.68,13.40503433]
[1736763621213,2.7841,179.73,179.67,2.7849]
[1736763621411,13.40503433,179.75,179.63,13.40503433]
[1736763621610,0.85015995,179.74,179.63,13.40503433]
[1736763622009,13.40503433,179.69,179.6,1.646]
[1736763622210,2.7857,179.63,179.57,2.7865]
[1736763622512,13.40503433,179.66,179.57,2.7865]
[1736763622913,2.7857,179.63,179.57,2.7865]
[1736763623810,2.786,179.61,179.56,7.2367]
[1736763624015,13.40503433,179.66,179.56,4.45]
[1736763624215,0.8506162,179.65,179.56,4.45]
[1736763624418,2.7858,179.62,179.56,7.2366]
[1736763624817,2.7858,179.62,179.56,4.45]
[1736763625011,13.40503433,179.66,179.56,4.45]
[1736763625216,2.7859,179.61,179.56,4.45]
[1736763625819,2.7858,179.62,179.57,2.7865]
[1736763626618,2.786,179.61,179.56,7.2366]
[1736763629520,7.66060537,179.65,179.56,4.45]
[1736763629721,0.85056706,179.64,179.56,4.45]
[1736763629926,13.40503433,179.66,179.56,4.45]
[1736763630221,0.85054412,179.65,179.56,4.45]
[1736763630427,0.85054236,179.65,179.56,4.45]
[1736763630626,2.7855,179.64,179.56,4.45]
[1736763631525,0.8505324,179.63,179.56,4.45]
[1736763631727,7.80624216,179.65,179.57,13.40503433]
[1736763631927,0.85051658,179.64,179.59,2.7862]
[1736763632127,2.7855,179.64,179.59,2.7862]
[1736763633217,2.7855,179.64,179.6,2.786]
[1736763633417,2.7855,179.64,179.57,13.40503433]
[1736763633827,2.7855,179.64,179.6,2.786]
[1736763634030,6.2,179.66,179.6,2.786]
[1736763634227,0.85051348,179.65,179.6,13.40503433]
[1736763634430,7.80624216,179.67,179.63,2.7855]
[1736763634724,2.7849,179.68,179.6,13.40503433]
[1736763634927,0.85034765,179.67,179.63,2.7855]
[1736763635129,0.85034765,179.67,179.6,13.40503433]
[1736763635325,2.7849,179.68,179.6,13.40503433]
[1736763635525,2.7847,179.69,179.64,2.7854]
[1736763635725,0.85030428,179.68,179.58,1.6983]
[1736763635929,0.85030428,179.67,179.61,13.40503433]
[1736763636125,3.63540428,179.66,179.61,16.19083433]
[1736763636322,2.7851,179.66,179.61,16.19083433]
[1736763636525,2.7851,179.66,179.61,13.40503433]
[1736763636730,2.7851,179.66,179.62,2.7858]
[1736763638331,2.785,179.67,179.62,2.7858]
[1736763638531,0.850359,179.66,179.62,2.7858]
[1736763639133,2.785,179.67,179.62,2.7858]
[1736763639435,2.785,179.67,179.63,2.7855]
[1736763640432,0.85035591,179.66,179.63,2.7855]
[1736763640634,0.85035591,179.66,179.65,2.7853]
[1736763640928,2.7847,179.69,179.65,2.7853]
[1736763641131,0.85025066,179.68,179.65,2.7853]
[1736763641428,10.59064216,179.71,179.66,2.7851]
[1736763641632,0.85022719,179.7,179.64,13.40503433]
[1736763642731,0.85022719,179.7,179.66,2.785]
[1736763643423,0.85022719,179.7,179.64,13.40503433]
[1736763643623,0.85022719,179.7,179.67,2.785]
[1736763643825,2.7844,179.71,179.67,2.785]
[1736763644030,0.85021597,179.69,179.67,2.785]
[1736763645932,3.63501597,179.69,179.64,16.19033433]
[1736763646134,3.63501597,179.69,179.67,4.45]
[1736763646332,0.85021597,179.69,179.67,4.45]
[1736763649736,0.85024198,179.68,179.67,4.45]
[1736763650138,2.7856,179.63,179.59,2.7862]
[1736763650343,14.2552503,179.69,179.58,15.10333433]
[1736763650547,13.40503433,179.66,179.58,1.6983]
[1736763650738,0.85042967,179.65,179.58,1.6983]
[1736763651235,0.85042967,179.65,179.58,15.10333433]
[1736763651436,7.80624216,179.67,179.59,1.6066]
[1736763651637,0.85043998,179.66,179.59,1.6066]
[1736763651831,0.85043998,179.66,179.58,1.6983]
[1736763651832,6.99043998,179.65,179.55,13.40503433]
[1736763652032,6.14,179.65,179.55,13.40503433]
[1736763652233,2.7858,179.62,179.57,2.7864]
[1736763652538,6.14,179.65,179.55,13.40503433]
[1736763652840,0.84966205,179.64,179.55,13.40503433]
[1736763653341,3.63526205,179.64,179.58,2.7862]
[1736763653538,0.84966205,179.63,179.55,13.40503433]
[1736763653742,6.14,179.65,179.55,13.40503433]
[1736763653946,0.8491769,179.64,179.55,13.40503433]
[1736763654145,2.7856,179.64,179.58,2.7864]
[1736763654346,0.84911292,179.63,179.55,13.40503433]
[1736763654546,6.14,179.65,179.55,13.40503433]
[1736763654945,2.7856,179.63,179.58,2.7864]
[1736763655148,6.14,179.65,179.55,13.40503433]
[1736763655348,0.84845346,179.64,179.58,13.40503433]
[1736763655549,3.63395346,179.64,179.6,2.7859]
[1736763655742,2.7855,179.64,179.6,2.7859]
[1736763656348,6.14,179.65,179.58,13.40503433]
[1736763656544,6.14,179.65,179.61,2.7858]
[1736763658947,8.9253,179.65,179.61,2.7858]
[1736763659645,7.80624216,179.67,179.64,13.40503433]
[1736763660152,95.03876178,179.71,179.66,2.785]
[1736763660351,0.84841133,179.7,179.64,13.40503433]
[1736763660845,92.25436178,179.75,179.67,13.40503433]
[1736763661046,0.8483386,179.74,179.7,13.40503433]
[1736763661250,92.25436178,179.75,179.74,2.7839]
[1736763661449,107.59481426,179.77,179.73,13.40503433]
[1736763661649,107.59481426,179.77,179.73,15.38503433]
[1736763661845,154.36543858,179.79,179.73,15.38503433]
[1736763662255,2.7835,179.77,179.73,15.38503433]
[1736763662453,154.36543858,179.79,179.73,15.38503433]
[1736763662648,69.16895985,179.82,179.73,15.38503433]
[1736763662844,71.95165985,179.82,179.76,2.7834]
[1736763663043,0.84829882,179.81,179.76,2.7834]
[1736763663252,0.84829882,179.81,179.73,15.38503433]
[1736763663444,0.84829882,179.81,179.76,2.7835]
[1736763663644,0.84829882,179.81,179.76,13.40503433]
[1736763664048,6.12,179.85,179.76,13.40503433]
[1736763664349,0.84825992,179.84,179.79,13.40503433]
[1736763664553,6.12,179.87,179.79,13.40503433]
[1736763664754,0.8481258,179.86,179.79,13.40503433]
[1736763664950,3.63019864,179.86,179.8,2.7828]
[1736763665149,0.84799864,179.85,179.8,2.7828]
[1736763665553,0.84799864,179.85,179.79,13.40503433]
[1736763665752,6.12,179.91,179.82,13.40503433]
[1736763666051,0.84777599,179.9,179.82,13.40503433]
[1736763666457,0.84777599,179.9,179.85,13.40503433]
[1736763666950,2.7812,179.92,179.86,2.782]
[1736763667149,0.84802677,179.91,179.86,2.782]
[1736763668057,0.84802677,179.91,179.83,5.0221]
[1736763668356,0.84802677,179.9,179.83,5.0221]
[1736763668556,3.62962677,179.89,179.83,7.8045]
[1736763668757,2.7816,179.89,179.83,7.8045]
[1736763669351,0.84775961,179.88,179.79,13.40503433]
[1736763669557,0.84783735,179.87,179.79,13.40503433]
[1736763669760,20.37287168,179.86,179.76,13.40503433]
[1736763670055,20.37287168,179.86,179.74,4.903]
[1736763670056,6.96783735,179.85,179.74,4.903]
[1736763670251,0.84773728,179.84,179.74,4.903]
[1736763670451,2.7827,179.82,179.75,2.7836]
[1736763670651,6.12,179.85,179.75,2.7836]
[1736763670855,0.8478183,179.84,179.75,2.7836]
[1736763671157,0.84774634,179.83,179.75,2.7836]
[1736763671359,0.84774634,179.84,179.74,3.2551]
[1736763671558,0.84739599,179.83,179.74,6.039]
[1736763671758,0.84739599,179.82,179.74,6.039]
[1736763672059,6.12,179.85,179.74,6.039]
[1736763672254,0.84713393,179.84,179.74,6.039]
[1736763672854,13.40503433,179.83,179.74,6.039]
[1736763673062,0.84706435,179.82,179.74,6.039]
[1736763673253,0.84706435,179.82,179.77,2.7834]
[1736763673455,6.12,179.85,179.77,2.7834]
[1736763673759,3.62985115,179.84,179.78,2.7833]
[1736763674061,0.84755115,179.83,179.78,2.7833]
[1736763674756,0.84755115,179.83,179.76,13.40503433]
[1736763674959,2.7825,179.83,179.77,2.7834]
[1736763675259,6.12,179.85,179.74,3.2551]
[1736763675568,2.7829,179.81,179.75,2.7837]
[1736763676062,2.7826,179.83,179.74,3.2551]
[1736763676264,6.12,179.85,179.74,3.2551]
[1736763676459,0.84746757,179.84,179.75,2.7836]
[1736763676659,3.62986757,179.84,179.76,13.40503433]
[1736763676858,2.7824,179.84,179.76,13.40503433]
[1736763677463,2.7825,179.83,179.76,13.40503433]
[1736763677859,6.12,179.85,179.76,13.40503433]
[1736763678059,2.7827,179.82,179.76,16.18863433]
[1736763678560,2.783,179.8,179.75,2.7837]
[1736763679468,2.7828,179.81,179.75,2.7837]
[1736763680261,13.40503433,179.83,179.74,3.2551]
[1736763680462,0.84734992,179.82,179.7,13.40503433]
[1736763681258,13.40503433,179.83,179.7,13.40503433]
[1736763681557,0.84754448,179.82,179.73,2.784]
[1736763682060,2.7833,179.79,179.73,2.784]
[1736763682261,6.12,179.85,179.73,13.40503433]
[1736763682455,2.7827,179.82,179.76,13.40503433]
[1736763682969,2.7826,179.83,179.76,16.18853433]
[1736763683258,6.12,179.85,179.76,16.18853433]
[1736763683557,2.7828,179.82,179.76,13.40503433]
[1736763683761,6.12,179.85,179.76,13.40503433]
[1736763684058,0.84836105,179.84,179.76,13.40503433]
[1736763684365,2.7827,179.82,179.76,16.18843433]
[1736763684566,2.7827,179.82,179.76,13.40503433]
[1736763686059,2.7827,179.82,179.77,2.7834]
[1736763686455,2.783,179.8,179.76,13.40503433]
[1736763687365,6.12,179.85,179.76,13.40503433]
[1736763687562,0.84942974,179.84,179.76,13.40503433]
[1736763687766,6.08,179.87,179.79,13.40503433]
[1736763688068,0.84918138,179.86,179.79,13.40503433]
[1736763688464,6.08,179.87,179.79,13.40503433]
[1736763688965,0.84926171,179.86,179.76,13.40503433]
[1736763689165,14.25429604,179.86,179.76,13.40503433]
[1736763689370,2.783,179.8,179.76,13.40503433]
[1736763690571,13.40503433,179.86,179.69,3.2007]
[1736763690572,2.7833,179.78,179.73,13.40503433]
[1736763690969,6.08,179.79,179.73,2.7839]
[1736763691466,8.8633,179.79,179.73,2.7839]
[1736763691671,8.8633,179.79,179.7,13.40503433]
[1736763691872,8.8633,179.79,179.74,2.7838]
[1736763696474,2.7833,179.78,179.74,2.7838]
[1736763697472,2.7838,179.75,179.7,2.7844]
[1736763697672,13.40503433,179.8,179.7,2.7844]
[1736763697875,0.84718239,179.79,179.7,2.7844]
[1736763698380,0.84718239,179.79,179.71,2.7843]
[1736763698881,2.7837,179.76,179.71,2.7843]
[1736763699077,13.40503433,179.8,179.7,13.40503433]
[1736763699770,2.7833,179.78,179.73,2.784]
[1736763700180,92.19248115,179.85,179.73,13.40503433]
[1736763700383,6.90744504,179.84,179.76,13.40503433]
[1736763700585,6.06,179.84,179.79,13.40503433]
[1736763700880,2.7821,179.86,179.79,13.40503433]
[1736763701177,92.19248115,179.87,179.82,13.40503433]
[1736763701384,92.19248115,179.9,179.82,13.40503433]
[1736763701575,92.19248115,179.9,179.83,3.1976]
[1736763701770,92.19248115,179.9,179.88,13.40503433]
[1736763701978,89.62618115,179.9,179.88,13.40503433]
[1736763702181,84.49378115,179.9,179.88,13.40503433]
[1736763702482,31.08437367,179.94,179.88,13.40503433]
[1736763702483,6.06,179.96,179.88,13.40503433]
[1736763702683,6.06,179.96,179.88,15.39503433]
[1736763702977,6.06,179.98,179.91,2.7813]
[1736763703186,6.06,179.98,179.88,15.39503433]
[1736763703477,2.7805,179.96,179.89,2.7815]
[1736763703683,6.06,179.98,179.88,1.99]
[1736763703879,22.22728555,179.97,179.88,1.99]
[1736763704082,0.84873165,179.96,179.88,1.99]
[1736763704279,8.62885362,179.96,179.88,1.99]
[1736763704478,0.84873165,179.95,179.88,1.99]
[1736763705380,2.7811,179.92,179.88,1.99]
[1736763706486,2.7812,179.92,179.88,1.99]
[1736763706882,21.3785539,179.97,179.88,1.99]
[1736763707184,2.7816,179.89,179.88,1.99]
[1736763708280,6.06,179.9,179.79,21.3785539]
[1736763708583,0.8468561,179.89,179.76,21.3785539]
[1736763708990,0.8468561,179.89,179.77,2.7834]
[1736763709479,2.7828,179.82,179.75,7.6809]
[1736763709983,2.7828,179.82,179.76,2.7836]
[1736763710978,2.7829,179.81,179.75,7.681]
[1736763711183,6.06,179.82,179.75,4.8973]
[1736763711584,2.783,179.8,179.75,4.8973]
[1736763711984,2.783,179.8,179.75,1.611]
[1736763712679,2.783,179.8,179.75,4.3947]
[1736763712884,6.06,179.82,179.68,21.3785539]
[1736763713087,0.84777761,179.81,179.69,1.6467]
[1736763713485,2.7833,179.78,179.72,2.7842]
[1736763713889,2.7833,179.78,179.69,1.6467]
[1736763714278,2.7833,179.78,179.71,2.7843]
[1736763714484,2.7833,179.78,179.69,1.6467]
[1736763715289,2.7833,179.78,179.72,2.7841]
[1736763715488,2.7834,179.77,179.72,2.7841]
[1736763716186,6.06,179.82,179.69,1.6467]
[1736763716485,0.84811093,179.81,179.73,2.784]
[1736763716986,2.7832,179.79,179.73,2.784]
[1736763718192,2.7832,179.79,179.74,2.7839]
[1736763721790,6.06,179.82,179.69,1.6467]
[1736763722094,21.3785539,179.79,179.69,1.6467]
[1736763722496,2.784,179.74,179.69,4.4313]
[1736763723698,6.86735418,179.73,179.6,21.3785539]
[1736763723891,6.86736749,179.72,179.6,21.3785539]
[1736763724198,2.7851,179.67,179.6,21.3785539]
[1736763724495,6.02,179.72,179.6,21.3785539]
[1736763724688,0.84701471,179.71,179.6,21.3785539]
[1736763725399,13.40668273,179.7,179.58,13.40668273]
[1736763725698,2.7854,179.65,179.59,2.7862]
[1736763725996,13.40668273,179.7,179.59,13.40668273]
[1736763726297,0.84733166,179.69,179.59,13.40668273]
[1736763726498,0.84738393,179.68,179.59,13.40668273]
[1736763726696,0.84738393,179.69,179.59,13.40668273]
[1736763726898,0.84723594,179.68,179.59,16.19288273]
[1736763727098,13.40668273,179.7,179.59,16.19288273]
[1736763727293,0.84714565,179.69,179.59,16.19288273]
[1736763727493,2.7851,179.66,179.59,16.19288273]
[1736763727693,13.40668273,179.67,179.57,3.324]
[1736763727894,2.7861,179.6,179.54,1.5746]
[1736763728101,6.06,179.61,179.51,3.2329]
[1736763728294,19.46668273,179.61,179.51,3.2329]
[1736763728494,13.40668273,179.56,179.51,1.6388]
[1736763728697,13.40668273,179.55,179.46,2.7881]
[1736763728892,2.7873,179.52,179.44,4.8287]
[1736763729398,2.7873,179.52,179.45,2.7883]
[1736763729591,6.2,179.53,179.44,4.8287]
[1736763730199,6.2,179.53,179.44,26.31780561]
[1736763730395,6.2,179.53,179.47,21.48910561]
[1736763730795,6.2,179.53,179.52,2.7873]
[1736763730990,2.7865,179.58,179.52,2.7873]
[1736763731196,8.9862,179.59,179.52,2.7872]
[1736763731500,8.9862,179.59,179.5,21.48910561]
[1736763731896,6.2,179.59,179.55,2.7868]
[1736763732196,6.2,179.59,179.5,21.48910561]
[1736763732403,6.2,179.59,179.57,2.7865]
[1736763732597,6.22,179.67,179.56,21.48910561]
[1736763732900,6.22,179.67,179.57,3.3372]
[1736763733096,0.84652078,179.66,179.57,3.3372]
[1736763733805,6.22,179.67,179.57,3.3372]
[1736763734298,2.7854,179.64,179.57,3.3372]
[1736763734599,6.22,179.67,179.57,3.3372]
[1736763734896,2.7853,179.65,179.59,2.7862]
[1736763735104,2.7853,179.65,179.57,3.3372]
[1736763735703,6.22,179.67,179.57,3.3372]
[1736763735902,0.84639563,179.66,179.52,21.48910561]
[1736763736101,4.13309563,179.66,179.52,21.48910561]
[1736763736303,0.84639563,179.65,179.52,21.48910561]
[1736763736805,3.2867,179.66,179.52,21.48910561]
[1736763737005,3.2867,179.66,179.53,1.6465]
[1736763737206,2.7858,179.62,179.54,2.7869]
[1736763737604,2.7858,179.62,179.53,1.6465]
[1736763738006,2.7858,179.62,179.55,2.7867]
[1736763738306,2.7856,179.64,179.53,1.6465]
[1736763738510,3.2867,179.66,179.55,21.48910561]
[1736763738806,6.24,179.65,179.56,1.5794]
[1736763739205,6.24,179.65,179.53,1.6465]
[1736763739206,0.84562074,179.64,179.53,1.6465]
[1736763739503,2.7861,179.6,179.53,1.6465]
[1736763739704,6.24,179.65,179.53,1.6465]
[1736763740001,2.7859,179.62,179.55,2.7867]
[1736763740207,2.7859,179.62,179.53,1.6465]
[1736763740208,6.24,179.65,179.53,1.6465]
[1736763740408,0.84566696,179.64,179.53,1.6465]
[1736763741009,22.33477257,179.64,179.49,21.48910561]
[1736763741305,21.48910561,179.61,179.48,1.5794]
[1736763741505,2.7868,179.55,179.48,1.5794]
[1736763741705,9.0868,179.55,179.48,1.5794]
[1736763742007,6.3,179.55,179.48,1.5794]
[1736763742405,6.3,179.55,179.48,4.3672]
[1736763742705,6.3,179.55,179.48,1.5794]
[1736763742907,6.3,179.55,179.5,2.7876]
[1736763743104,6.3,179.55,179.48,1.5794]
[1736763743608,6.3,179.55,179.48,23.06850561]
[1736763743903,6.38,179.61,179.48,23.06850561]
[1736763745011,27.86910561,179.61,179.48,1.5794]
[1736763745308,6.38,179.61,179.48,23.06850561]
[1736763745809,2.7864,179.58,179.53,2.787]
[1736763746206,2.7865,179.57,179.52,2.7873]
[1736763746402,6.38,179.61,179.48,1.5794]
[1736763746600,21.48910561,179.67,179.5,21.48910561]
[1736763746812,2.786,179.61,179.54,2.7869]
[1736763747008,2.786,179.61,179.5,21.48910561]
[1736763747208,6.4,179.65,179.5,21.48910561]
[1736763747409,2.7858,179.62,179.56,2.7865]
[1736763748213,21.48910561,179.64,179.48,1.5794]
[1736763748509,21.48910561,179.58,179.48,1.5794]
[1736763748712,2.7871,179.54,179.48,4.3672]
[1736763749316,9.7461,179.57,179.48,1.5794]
[1736763750616,9.7461,179.57,179.43,21.48910561]
[1736763750921,2.7874,179.52,179.43,21.48910561]
[1736763751121,9.7461,179.57,179.43,21.48910561]
[1736763751422,21.48910561,179.52,179.42,2.7889]
[1736763751727,21.48910561,179.46,179.36,30.6306486]
[1736763751915,9.813,179.45,179.36,30.6306486]
[1736763752122,9.813,179.45,179.35,7.65766215]
[1736763752427,6.58,179.45,179.35,29.14676776]
[1736763753825,6.58,179.45,179.35,21.48910561]
[1736763754129,6.58,179.45,179.33,1.6536]
[1736763754318,9.3685,179.45,179.37,2.7896]
[1736763754521,6.58,179.45,179.33,1.6536]
[1736763754822,24.79730561,179.44,179.33,1.6536]
[1736763755019,3.3082,179.44,179.33,1.6536]
[1736763755221,24.79730561,179.44,179.33,1.6536]
[1736763755421,2.7894,179.39,179.33,1.6536]
[1736763755622,24.79730561,179.44,179.33,1.6536]
[1736763756519,3.3082,179.44,179.33,1.6536]
[1736763756914,21.48910561,179.47,179.33,1.6536]
[1736763757120,6.8,179.48,179.35,21.48910561]
[1736763757526,2.7884,179.45,179.38,2.7894]
[1736763757728,2.7884,179.45,179.35,21.48910561]
[1736763758118,9.5881,179.48,179.38,21.48910561]
[1736763758322,6.8,179.48,179.38,21.48910561]
[1736763758619,126.52386712,179.5,179.44,2.7884]
[1736763758821,126.52386712,179.5,179.41,21.48910561]
[1736763759229,2.7881,179.47,179.41,21.48910561]
[1736763759632,126.52386712,179.5,179.41,21.48910561]
[1736763760025,126.52386712,179.5,179.44,2.7885]
[1736763760224,6.8,179.51,179.41,21.48910561]
[1736763760630,6.8,179.53,179.41,21.48910561]
[1736763760826,6.8,179.53,179.42,4.7758]
[1736763761125,2.7874,179.52,179.45,2.7883]
[1736763761428,6.8,179.53,179.42,4.7758]
[1736763761928,2.7873,179.52,179.46,2.7882]
[1736763762123,6.8,179.53,179.44,21.48910561]
[1736763762326,6.78,179.57,179.47,21.48910561]
[1736763762525,2.7868,179.56,179.49,2.7876]
[1736763762725,6.78,179.57,179.49,2.7876]
[1736763763129,6.78,179.57,179.45,21.48910561]
[1736763763330,6.78,179.57,179.5,2.7876]
[1736763764130,2.7867,179.56,179.5,2.7876]
[1736763764735,6.78,179.57,179.52,2.7873]
[1736763765233,6.78,179.57,179.45,21.48910561]
[1736763765434,9.5665,179.57,179.51,2.7874]
[1736763765935,3.3229,179.6,179.48,21.48910561]
[1736763766241,3.3229,179.6,179.42,4.7758]
[1736763766242,6.78,179.62,179.51,21.48910561]
[1736763766440,21.48910561,179.64,179.52,3.2964]
[1736763766630,7.62274383,179.63,179.56,2.7867]
[1736763766832,6.78,179.63,179.56,2.7867]
[1736763767028,2.7856,179.64,179.58,2.7863]
[1736763767632,2.7856,179.64,179.52,4.9939]
[1736763767837,2.7859,179.61,179.55,2.7867]
[1736763768336,6.78,179.65,179.52,4.9939]
[1736763769227,2.7857,179.63,179.56,2.7865]
[1736763770933,2.7857,179.63,179.57,2.7865]
[1736763772938,2.7861,179.6,179.55,2.7867]
[1736763773141,21.48910561,179.64,179.52,4.9939]
[1736763773437,0.84287403,179.63,179.52,3.2964]
[1736763773643,6.78,179.65,179.52,24.78550561]
[1736763773939,2.7857,179.63,179.57,2.7865]
[1736763775039,2.7854,179.64,179.58,2.7862]
[1736763775336,9.9837,179.67,179.55,21.48910561]
[1736763775533,2.7853,179.65,179.59,2.7861]
[1736763775731,2.7853,179.65,179.55,21.48910561]
[1736763775930,9.9837,179.67,179.55,21.48910561]
[1736763776243,2.7855,179.64,179.59,2.7862]
[1736763776637,9.9837,179.67,179.59,2.7862]
[1736763776837,0.84271655,179.66,179.59,2.7862]
[1736763777135,0.84271655,179.66,179.57,2.7864]
[1736763777332,2.7857,179.63,179.57,2.7864]
[1736763777529,29.91370561,179.67,179.53,1.5416]
[1736763777732,0.84271232,179.66,179.53,1.5416]
[1736763777935,2.7862,179.6,179.52,24.78550561]
[1736763778339,2.7859,179.61,179.52,24.78550561]
[1736763779939,2.7858,179.62,179.52,24.78550561]
[1736763780535,2.7858,179.62,179.57,2.7864]
[1736763781043,1.2345,179.66,179.56,2.7867]
[1736763781246,1.2345,179.66,179.52,24.78550561]
[1736763781247,21.48910561,179.64,179.52,3.2964]
[1736763781548,2.7861,179.6,179.53,2.7871]
[1736763781744,21.48910561,179.64,179.52,3.2964]
[1736763781946,0.84280487,179.63,179.52,3.2964]
[1736763782849,0.84281148,179.62,179.54,2.7869]
[1736763783052,0.84281148,179.61,179.54,2.7869]
[1736763783343,2.7862,179.6,179.55,2.7868]
[1736763783548,21.48910561,179.64,179.55,2.7868]
[1736763783743,0.84287213,179.63,179.52,3.2964]
[1736763783949,2.7861,179.6,179.53,2.787]
[1736763784145,21.48910561,179.64,179.52,3.2964]
[1736763784342,21.48910561,179.64,179.49,21.48910561]
[1736763784343,0.84256351,179.63,179.49,21.48910561]
[1736763784748,21.48910561,179.64,179.49,21.48910561]
[1736763784952,0.84241755,179.62,179.52,21.48910561]
[1736763785140,2.786,179.61,179.55,2.7868]
[1736763785342,2.786,179.61,179.52,21.48910561]
[1736763786245,2.786,179.61,179.56,2.7866]
[1736763786450,7.69896135,179.66,179.52,21.48910561]
[1736763786650,7.60248273,179.65,179.58,2.7862]
[1736763786853,0.84248273,179.64,179.58,2.7862]
[1736763787250,2.7857,179.63,179.58,2.7862]
[1736763787850,6.76,179.65,179.58,2.7862]
[1736763788054,2.7858,179.62,179.58,2.7862]
[1736763788351,6.76,179.65,179.53,2.7871]